Cogmind - Beta 9.2 @@@ ROGUE MODE // 2019.12.13 @ 19:59:13 Player: Cassie Rose Result: Destroyed by Y-45 Defender with Heavy Assault Rifle Performance ------------- Evolutions (1) 500 Regions Visited (2) 400 Robots Destroyed (42) 210 Value Destroyed (617) 617 Prototype IDs (0) 0 Alien Tech Used (0) 0 Bonus (0) 0 TOTAL SCORE: 1727 Bonus ------- None Cogmind --------- Core Integrity 0/400 Matter 29/300 Energy 265/265 System Corruption 0% Temperature Cool (9) Movement Core (650) Ox12 Location -9/Materials Parts ------- > --- POWER (1) -------- Improved Ion Engine > --- PROPULSION (4) --- (None) > --- UTILITY (2) ------ High-capacity Storage Unit > --- WEAPON (2) ------- (None) > --- INVENTORY (12) --- Improved Ion Engine Improved Ion Engine Improved Hover Unit Improved Hover Unit Improved Hover Unit Improved Hover Unit Improved Sensor Array Improved Terrain Scanner Peak State ------------ > --- POWER ------------ Improved Ion Engine > --- PROPULSION ------- Light Treads Light Treads > --- UTILITY ---------- High-capacity Storage Unit Improved Terrain Scanner > --- WEAPON ----------- Light Cannon Grenade Launcher > --- INVENTORY -------- Improved Ion Engine Improved Ion Engine Improved Ion Engine Improved Hover Unit Improved Hover Unit Improved Hover Unit Improved Hover Unit Improved Sensor Array Improved Terrain Scanner Light Cannon Grenade Launcher [Rating: 11] Favorites ----------- Power Light Ion Engine Engine Light Ion Engine Propulsion Light Treads Treads Light Treads Utility Improved Terrain Scanner Device Improved Terrain Scanner Storage High-capacity Storage Unit Protection Medium Armor Plating Weapon Light Assault Rifle Energy Gun Medium Laser Ballistic Gun Light Assault Rifle Ballistic Cannon Light Cannon Launcher Grenade Launcher Build | -11 -10 -9 ------- Run | Scr Mat Mat Slots Evolved 2 | . . 2 Power . | . . . Propulsion 2 | . . 2 Utility . | . . . Weapon . | . . . Parts Attached 22 | 6 11 5 Power 5 | 1 3 1 Engine 5 | 1 3 1 Core . | . . . Reactor . | . . . Propulsion 4 | 2 1 1 Treads 4 | 2 1 1 Leg . | . . . Wheel . | . . . Hover . | . . . Flight . | . . . Utility 4 | 1 2 1 Device 1 | 1 . . Storage 2 | . 2 . Processor . | . . . Hackware . | . . . Protection 1 | . . 1 Artifact . | . . . Weapon 9 | 2 5 2 Energy Gun 2 | 1 . 1 Energy Cannon . | . . . Ballistic Gun 2 | 1 1 . Ballistic Cannon 2 | . 2 . Launcher 3 | . 2 1 Special Weapon . | . . . Impact Weapon . | . . . Slashing Weapon . | . . . Piercing Weapon . | . . . Special Melee Weapon . | . . . Unidentified Prototypes . | . . . Parts Lost 11 | . 1 10 Power 1 | . . 1 Propulsion 3 | . . 3 Utility 2 | . . 2 Weapon 5 | . 1 4 Highest Loss Streak 9 | . 1 9 Average Slot Usage (%) 82 | . 89 64 Engine 13 | . 14 11 Treads 24 | . 28 16 Device 12 | . 14 8 Storage 5 | . 3 11 Energy Gun 3 | . 4 . Ballistic Gun 7 | . 9 . Ballistic Cannon 9 | . 9 7 Launcher 5 | . 4 9 Naked Turns . | . . . Heaviest Build 49 | 7 46 49 Greatest Support 40 | 40 40 40 Greatest Overweight (x) 16 | . 1 16 Average Overweight (x) . | . . 1 Largest Inventory Capacity 12 | 4 12 12 Average Capacity 6 | 4 5 12 Most Carried 12 | 1 11 12 Average Carried 4 | . 4 11 Final Capacity 12 | 4 12 12 Final Carried 11 | 1 11 8 Class Distribution -------------------- 100% | Mutant Dominant Class ---------------- Mutant | -10/Materials Mutant | -9/Materials Resources | -11 -10 -9 ----------- Run | Scr Mat Mat Matter Collected 656 | 300 196 160 Remotely . | . . . Salvage Created 957 | 214 449 294 Parts 72 | 20 31 21 Haulers Intercepted 3 | . 2 1 Recyclers Shooed 1 | . 1 . Parts Field Recycled . | . . . Retrieved Matter . | . . . Parts Self-Destructed . | . . . Prevented . | . . . Kills | -11 -10 -9 ------- Run | Scr Mat Mat Combat Hostiles Destroyed 22 | . 14 8 Guns 7 | . 5 2 Cannons 10 | . 9 1 AOE 5 | . . 5 Classes Destroyed 10 | 3 4 3 Worker 2 | 1 . 1 Builder 1 | . . 1 Tunneler 9 | 8 1 . Hauler 3 | . 2 1 Recycler 2 | 1 1 . Operator 1 | . . 1 Watcher 2 | . 1 1 Swarmer 12 | . 9 3 Grunt 9 | . 5 4 Sentry 1 | . . 1 Best Kill Streak 5 | 2 5 5 Combat Bots Only 4 | . 4 3 Max Kills in Single Turn 2 | 1 1 2 Gunslinging . | . . . Exploded 1 | . . 1 Melee . | . . . Uniques/NPCs Destroyed . | . . . Combat | -11 -10 -9 -------- Run | Scr Mat Mat Damage Taken 1958 | . 602 1356 Core 508 | . 105 403 Absorbed by Shields . | . . . Core Remaining (%) 79 | 100 58 . Volleys Fired 125 | 40 61 24 Largest 2 | 2 2 2 Hottest 70 | 70 70 65 Shots Fired 236 | 80 117 39 Gun 147 | 80 63 4 Cannon 68 | . 50 18 Launcher 21 | . 4 17 Special . | . . . Kinetic 160 | 40 102 18 Thermal 51 | 40 11 . Explosive 21 | . 4 17 Electromagnetic 4 | . . 4 Robot Hit Streak 11 | 11 10 10 Robot Miss Streak 7 | 3 7 2 Penetration Max . | . . . Secondary Targets . | . . . Shots Hit Robots 142 | 53 64 25 Core Hits 66 | 18 28 20 Critical Hits 3 | . 3 . Critical Kills 1 | . 1 . Critical Parts Destroyed 2 | . 2 . Melee Attacks . | . . . Impact . | . . . Slashing . | . . . Piercing . | . . . Sneak Attacks . | . . . Combat Hostiles . | . . . Follow-up Attacks . | . . . Damage Inflicted 2182 | 527 866 789 Guns 845 | 527 285 33 Cannons 719 | . 475 244 Explosions 614 | . 106 508 Melee . | . . . Ramming 4 | . . 4 Kinetic 1144 | 202 698 244 Thermal 387 | 325 62 . Explosive 614 | . 106 508 Electromagnetic 33 | . . 33 Impact . | . . . Slashing . | . . . Piercing . | . . . Highest Corruption . | . . . Average Corruption . | . . . Corruption Purged . | . . . Overload Shots . | . . . Overflow Damage 19 | . 7 12 Projectiles 3 | . . 3 Explosions 16 | . 7 9 Melee . | . . . Knockbacks 7 | . 6 1 Impact . | . . . Kinetic 7 | . 6 1 Secondary . | . . . Self-Inflicted Damage 127 | . . 127 Shots 5 | . . 5 Rammed 4 | . . 4 Targets Rammed 4 | . . 4 Kicked . | . . . Crushed . | . . . Highest Temperature 100 | 100 100 16 Average Temperature 24 | 34 17 7 Received Heat Transfer 285 | . 42 243 Siege Activations . | . . . Robots Corrupted . | . . . Combat Hostiles . | . . . Parts Fried . | . . . Impact Corruptions . | . . . Robots Melted . | . . . Combat Hostiles . | . . . Parts Melted 2 | . 2 . Heat Transferred 1147 | 962 185 . Parts Sabotaged . | . . . Parts Stolen . | . . . Parts Stripped . | . . . Power Chain Reactions . | . . . Missiles Intercepted . | . . . Alert | -11 -10 -9 ------- Run | Scr Mat Mat Peak Influence 241 | 40 241 150 Average Influence 74 | 17 99 86 Maximum Alert Level 1 | . 1 . Low Security (%) 92 | 100 86 100 Level 1 7 | . 13 . Level 2 . | . . . Level 3 . | . . . Level 4 . | . . . Level 5 . | . . . High Security . | . . . Max Security . | . . . Squads Dispatched 7 | . 6 1 Investigation 3 | . 3 . Extermination . | . . . Reinforcement 4 | . 3 1 Assault . | . . . Garrison . | . . . Intercept . | . . . Construction Impeded 1 | . . 1 Haulers Reinforced . | . . . Stealth | -11 -10 -9 --------- Run | Scr Mat Mat Distress Signals 2 | . 1 1 Communications Jammed . | . . . Distress Signals . | . . . Times Spotted 45 | . 29 16 Peak Tracking Total 6 | . 6 5 Tactical Retreats 5 | . 3 2 Traps | -11 -10 -9 ------- Run | Scr Mat Mat Traps Triggered 4 | . 4 . Indirectly . | . . . Trap Hack Attempts . | . . . Triggered . | . . . Disarmed . | . . . Reprogrammed . | . . . Reused . | . . . Traps Extracted . | . . . Installed . | . . . Triggered . | . . . Machines | -11 -10 -9 ---------- Run | Scr Mat Mat Machines Disabled 1 | . . 1 Max in Single Turn 1 | . . 1 Machines Sabotaged . | . . . Garrisons Compromised . | . . . Overloaded Fab Kills . | . . . Fab Network Shutdowns . | . . . Hacking | -11 -10 -9 --------- Run | Scr Mat Mat Machines Accessed 1 | . . 1 Terminals 1 | . . 1 Fabricators . | . . . Repair Stations . | . . . Recycling Units . | . . . Scanalyzers . | . . . Garrison Access . | . . . Total Hacks 1 | . . 1 Successful 1 | . . 1 Failed . | . . . Catastrophic . | . . . Database Lockouts . | . . . Manual . | . . . Terminals 1 | . . 1 Fabricators . | . . . Repair Stations . | . . . Recycling Units . | . . . Scanalyzers . | . . . Garrison Access . | . . . Terminal Hacks 1 | . . 1 Unreport Threat 1 | . . 1 Fabricator Hacks . | . . . Repair Station Hacks . | . . . Recycling Unit Hacks . | . . . Scanalyzer . | . . . Garrison Access Hacks . | . . . Unauthorized Hacks . | . . . Terminals . | . . . Fabricators . | . . . Repair Stations . | . . . Recycling Units . | . . . Scanalyzers . | . . . Garrison Access . | . . . Data Cores Recovered 1 | . . 1 Used 1 | . . 1 Hacking Detections . | . . . Full Trace Events . | . . . Feedback Events . | . . . Feedback Blocked . | . . . Robot Schematics Acquired . | . . . Robots Built . | . . . Matter . | . . . Time . | . . . Total Robot Build Rating . | . . . Part Schematics Acquired . | . . . Parts Built . | . . . Matter . | . . . Time . | . . . Total Part Build Rating . | . . . Parts Repaired . | . . . Time . | . . . Parts Recycled . | . . . Recycled Matter . | . . . Retrieved Matter . | . . . Retrieved Components . | . . . Parts Scanalyzed . | . . . Part Schematics Acquired . | . . . Parts Damaged . | . . . Bothacking | -11 -10 -9 ------------ Run | Scr Mat Mat Used RIF Installer . | . . . Robots Hacked . | . . . Non-combat . | . . . Combat . | . . . Robot Hacks Applied . | . . . Relay Couplers Released . | . . . Robots Rewired . | . . . Allies Hacked . | . . . Hacks Repelled . | . . . Allies | -11 -10 -9 -------- Run | Scr Mat Mat Total Allies . | . . . Largest Group . | . . . Highest-Rated Group . | . . . Highest-Rated Ally . | . . . Total Orders . | . . . Ally Attacks . | . . . Total Damage . | . . . Kills . | . . . Allies Corrupted . | . . . Allies Melted . | . . . Intel | -11 -10 -9 ------- Run | Scr Mat Mat Robot Analysis Total . | . . . Derelict Logs Recovered . | . . . Drone Launches . | . . . Drone Recoveries . | . . . Exploration | -11 -10 -9 ------------- Run | Scr Mat Mat Turns Passed 1921 | 529 1041 351 Spaces Moved 884 | 256 505 123 Core 12 | 4 . 8 Treads 872 | 252 505 115 Legs . | . . . Wheels . | . . . Hover . | . . . Flight . | . . . Fastest Speed 50 | 50 160 160 Average Speed 168 | 158 162 216 Slowest Speed 850 | 160 180 850 Overloaded Moves . | . . . Propulsion Burnouts . | . . . Robots Hopped . | . . . Cave-ins Triggered . | . . . Exploration Rate (%) 39 | 13 92 14 Regions Visited 2 Branch Regions . Pre-discovered Areas . | . . . Known Exits Taken . | . . . Unknown Exits Taken 2 | 1 1 . Scrap Searched . | . . . Spaces Dug . | . . . Terrain Destroyed 132 | . 25 107 Melee . | . . . Projectile . | . . . AOE 132 | . 25 107 Actions | -11 -10 -9 --------- Run | Scr Mat Mat Total 1087 | 308 619 160 Wait 13 | . 13 . Move 882 | 255 504 123 Hop . | . . . Pick Up 29 | 7 19 3 Fast Attach 2 | . 2 . Attach 11 | 6 . 5 Detach . | . . . Swap 9 | . 9 . Drop 12 | . 11 1 Fire 125 | 40 61 24 Melee . | . . . Ram 2 | . . 2 Kick . | . . . Crush 2 | . . 2 Escape Stasis . | . . . Rewire . | . . . Trap . | . . . Miscellaneous . | . . . Route ------- -11/Scrapyard -10/Materials (discovered 4 exits: *Mat x3 / [*Min]) -9/Materials History --------- Turn | Location | Event 7 | -11/Scrapyard | Discovered new exit (range 15) 530 | -11/Scrapyard | Entered Materials 531 | -10/Materials | Build established: Mutant 667 | -10/Materials | Discovered new exit (range 4) 955 | -10/Materials | Discovered new exit (range 10) 1140 | -10/Materials | Discovered new exit (range 15) 1283 | -10/Materials | Discovered new exit (range 13) 1571 | -10/Materials | Entered another Materials area 1571 | -9/Materials | Evolved 2 slots: Propulsion x2 1854 | -9/Materials | Core integrity fell below 50% 1902 | -9/Materials | Core integrity fell below 20% 1922 | -9/Materials | Destroyed by Y-45 Defender with Heavy Assault Rifle Last Messages --------------- 01830_ The unstable cave ceiling collapses. 01834_ Lgt. Treads destroyed. 01838_ Slammed into S-10 Pest. 01845_ Destabilizing: System interference. 01845_ Imp. Terrain Scanner temporarily disabled. 01851_ Imp. Terrain Scanner destroyed. 01853_ Imp. Ion Engine destroyed. 01858_ S-10 Pest destroyed. 01860_ EM Pulse Gun destroyed. 01864_ Acquired 20 matter. 01874_ S-10 Pest destroyed. 01874_ A-02 Transporter destroyed. 01888_ Med. Armor Plating destroyed. 01901_ R-06 Scavenger collects Lgt. Assault Rifle. 01906_ Grenade Launcher destroyed. 01907_ R-06 Scavenger collects Prototype Energy Gun. 01914_ Acquired 16 matter. 01914_ R-06 Scavenger collects Prototype Energy Gun. 01919_ U-05 Engineer lays Concrete. 01922_ U-05 Engineer builds a Wall. Map ----- +----------------------------------------------------+ | ?????????????????????????????? | | ?????????????????????????????? | | ?????????????????????????????? | | ?????????????????????????????? | | ?????????????????????????????? | | ?????????????????????????????? | | ?????????????????????????????? | | ?????????????????????????????? | | ?????????????????????????????? | | ?????????????????????????????? | | ?????????????????????????????? | | ?????????????????????????????? | | ?????????????????????????????? | | ?????????????????????????????? | | ?????? ??????????????????????? | | ?????? ##+###????????????????? | | ???? #????????????????? | | ??## +????????????????? | | ???#""" #????????????????? | | ???#"R #????????????????? | | ???#""" +????????????????? | | #### # ???????????????? | | #""" #????????????????? | | #"T ![ #??? ??????? ????? | | ?""" %[ # ?????? ????????? | | ???# @ [ #??????#?????????? | | ???# ###########??"?? ? | | ##### ## ## #??? ?? ? | | # = #???? ??? | | # Y "" #?#+####+ | | # r "" ## ^^ | | # # "T ## ^^ ? | | # | """ # u "" # ^^ ? | | # """ # # "" ## #??? | | # """ # u# ## ##?? | | # # # ## #??? | | ########## # # #??# | | ???#???# #?? | | ??#?#??# # # ?? | | ####?### [%* #?"? | | # ? # = # ? | | # """ # # ### "% ##?? | | # """ ## # # # " #? ? | | # """ ### ## ##? | | # #?# ########## #?? | | # """ ### ### # " | | # """ ## # # + " | | # """ # # | | # # ####### # | | # """ + ##?????# ##? | +----------------------------------------------------+ Best States ------------- Heat Dissipation 28 Energy Generation 12 Energy Capacity 265 Matter Stores 300 Matter Capacity 300 Sight Range 16 Terrain Scan Range 16 Terrain Scan Density 10 Armor Coverage 225 Evasion (%) 40 Recoil Reduction 2 Item Schematics ----------------- None Robot Schematics ------------------ None Fabricated ------------ Nothing Alien Tech Used ----------------- None Achievements -------------- None Challenges ------------ None Game ------ Seed RiotExplosiveMagmablaster Manual? 0 Play Time 00:17:36 Cumulative 61.2 hours Start 2019.12.13 @ 19:42:16 End 2019.12.13 @ 19:59:13 Sessions 1 Manual Loads 0 Difficulty Rogue Special Mode None Game No. 99 Rogue 99 Adventurer 0 Explorer 0 Win Type - Total 0 Types 0/0/0/0/0/0/0 Lore% 22 Gallery% 26 Achievement% 25 Wizard Run 0 Options --------- ASCII 0 Keyboard 0 Movement Mouse Keybinds 0 Fullscreen 1 Font 18/SmallcapsGlow Map View 76x50 Tactical HUD 1 Map Filters NONE Filters LOW_CONTRAST(13,24,33)|BRIGHTNESS(120)|SATURATION(80) Steam 1 RUN: 5444058f-7c6a-437e-8bc0-4a4ce59545c1